Cogmind - Beta 14 @@@ ROGUE MODE // 2024.08.10 @ 21:54:31 Player: Calasmeer Result: Destroyed by P5-LB2(R) with Subdweller Beam Cannon Performance ------------- Evolutions (0) 0 Regions Visited (2) 400 Robots Destroyed (31) 155 Value Destroyed (692) 692 Prototype IDs (0) 0 Alien Tech Used (0) 0 Bonus (-169) -169 TOTAL SCORE: 1078 Bonus ------- Friendly Fire -169 Cogmind --------- Core Integrity 0/250 Matter 255/300 Energy 249/250 System Corruption 2% Temperature Cool (9) Movement Rolling (100) Location -10/Subcaves Parts ------- > --- POWER (1) -------- Ion Engine > --- PROPULSION (2) --- Compact Wheel > --- UTILITY (2) ------ Signal Interpreter > --- WEAPON (2) ------- Particle Cannon > --- INVENTORY (5) ---- Light Angular Momentum Engine Large Storage Unit EM Pulse Gun Bore Cannon Peak State ------------ > --- POWER ------------ Subdweller Power Source > --- PROPULSION ------- Wheel Subdweller Monowheel > --- UTILITY ---------- Scrap Shield > --- WEAPON ----------- Particle Cannon Grenade Launcher > --- INVENTORY -------- Light Angular Momentum Engine Compact Wheel Subdweller Monowheel Large Storage Unit EM Pulse Gun [Rating: 13] Favorites ----------- Power Ion Engine Engine Ion Engine Propulsion Wheel Wheel Wheel Utility Hacking Suite Storage Medium Storage Unit Processor Signal Interpreter Hackware Hacking Suite Protection Scrap Shield Weapon Particle Cannon Energy Gun EM Pulse Gun Energy Cannon Particle Cannon Ballistic Gun Assault Rifle Ballistic Cannon Bore Cannon Launcher Grenade Launcher Build | -11 -10 -10 ------- Run | Yrd Mat Sub Slots Evolved . | . . . Power . | . . . Propulsion . | . . . Utility . | . . . Weapon . | . . . Parts Attached 39 | 7 18 14 Power 5 | 1 2 2 Engine 5 | 1 2 2 Core . | . . . Reactor . | . . . Propulsion 10 | 2 3 5 Treads . | . . . Leg . | . . . Wheel 10 | 2 3 5 Hover . | . . . Flight . | . . . Utility 6 | 1 2 3 Device . | . . . Storage 3 | 1 1 1 Processor 1 | . . 1 Hackware 1 | . 1 . Protection 1 | . . 1 Artifact . | . . . Weapon 18 | 3 11 4 Energy Gun 8 | 2 5 1 Energy Cannon 2 | . 2 . Ballistic Gun 2 | 1 1 . Ballistic Cannon 1 | . . 1 Launcher 5 | . 3 2 Special Weapon . | . . . Impact Weapon . | . . . Slashing Weapon . | . . . Piercing Weapon . | . . . Special Melee Weapon . | . . . Unidentified Prototypes . | . . . Parts Lost 5 | . 2 3 Power 1 | . 1 . Propulsion 3 | . 1 2 Utility . | . . . Weapon 1 | . . 1 Highest Loss Streak 3 | . 1 3 To Critical Strikes . | . . . Average Slot Usage (%) 92 | . 97 84 Engine 13 | . 13 14 Wheel 27 | . 27 27 Storage 8 | . 14 . Processor 2 | . . 7 Hackware 7 | . 12 . Protection 2 | . . 6 Energy Gun 8 | . 13 . Energy Cannon 12 | . 11 14 Ballistic Gun 1 | . 2 . Launcher 5 | . . 12 Peak Build Rating 13 | 6 11 13 Average Rating 9 | 4 9 10 On Entrance 5 | . 6 10 Naked Turns . | . . . Heaviest Build 30 | 13 22 30 Greatest Support 36 | 26 26 36 Greatest Overweight (x) 2 | . . 2 Average Overweight (x) . | . . . Largest Inventory Capacity 15 | 8 10 15 Average Capacity 7 | 7 9 5 Most Carried 10 | 5 10 10 Average Carried 6 | 3 8 4 Final Capacity 10 | 8 10 5 Final Carried 9 | 4 9 4 Class Distribution -------------------- 90% | Mutant 7% | Subdweller-Mutant Dominant Class ---------------- Mutant | -10/Materials Mutant | -10/Subcaves Resources | -11 -10 -10 ----------- Run | Yrd Mat Sub Matter Collected 826 | 204 390 232 Remotely . | . . . Salvage Created 837 | . 607 230 Parts 61 | . 46 15 Haulers Intercepted 1 | . 1 . Recyclers Shooed 1 | . 1 . Parts Field Recycled . | . . . Retrieved Matter . | . . . Parts Self-Destructed 9 | . . 9 Prevented . | . . . Kills | -11 -10 -10 ------- Run | Yrd Mat Sub Combat Hostiles Destroyed 22 | . 15 7 Guns 7 | . 7 . Cannons 5 | . 3 2 AOE 10 | . 5 5 Classes Destroyed 9 | . 7 2 Worker 1 | . 1 . Hauler 1 | . 1 . Recycler 1 | . 1 . Operator 2 | . 2 . Watcher 3 | . 3 . Swarmer 9 | . 6 3 Grunt 11 | . 9 2 Subdweller 2 | . . 2 Guerrilla 1 | . . 1 Best Kill Streak 5 | . 5 3 Combat Bots Only 3 | . 3 3 Max Kills in Single Turn 2 | . 2 2 Gunslinging . | . . . Exploded 2 | . 2 2 Melee . | . . . Uniques/NPCs Destroyed . | . . . Combat | -11 -10 -10 -------- Run | Yrd Mat Sub Hostile Shots Fired 91 | . 62 29 Missed 24 | . 13 11 Damage Taken 998 | . 621 377 Core 254 | . 128 126 Absorbed by Shields . | . . . Regen/Repaired (Parts) 77 | . 77 . Core Remaining (%) 100 | 100 . . Volleys Fired 98 | 1 67 30 Largest 2 | 2 2 2 Hottest 125 | 60 108 125 Shots Fired 173 | 2 132 39 Gun 92 | 2 90 . Cannon 67 | . 34 33 Launcher 14 | . 8 6 Special . | . . . Kinetic 31 | 1 27 3 Thermal 118 | 1 87 30 Explosive 14 | . 8 6 Electromagnetic 10 | . 10 . Robot Hit Streak 8 | . 8 6 Robot Miss Streak 5 | . 5 2 Penetration Max . | . . . Secondary Targets 1 | . 1 . Max Gunslinging Chain 1 | . 1 . Shots Hit Robots 93 | . 75 18 Core Hits 45 | . 30 15 Critical Kills 1 | . . 1 Critical Parts Destroyed 1 | . . 1 Critical Strikes 2 | . . 2 Destroy 2 | . . 2 Melee Attacks . | . . . Impact . | . . . Slashing . | . . . Piercing . | . . . Sneak Attacks . | . . . Combat Hostiles . | . . . Follow-up Attacks . | . . . Damage Inflicted 2377 | . 1423 954 Guns 673 | . 673 . Cannons 618 | . 369 249 Explosions 1086 | . 381 705 Melee . | . . . Ramming . | . . . Kinetic 291 | . 228 63 Thermal 970 | . 784 186 Explosive 1018 | . 313 705 Electromagnetic 98 | . 98 . Impact . | . . . Slashing . | . . . Piercing . | . . . Highest Corruption 2 | . 2 2 Average Corruption 2 | . 2 2 Corruption Purged . | . . . Corruption Blocked . | . . . Effects 33 | . 18 15 Message Errors 7 | . 5 2 Matter Fused 8 | . 4 4 Heat Flow Errors 3 | . 2 1 Energy Discharges 8 | . 4 4 Data Loss (minor) 3 | . 1 2 Data Loss (major) 1 | . . 1 Misfires 1 | . 1 . Weapon Failures 2 | . 1 1 Overload Shots . | . . . Overflow Damage 43 | . 43 . Projectiles 21 | . 21 . Explosions 22 | . 22 . Melee . | . . . Knockbacks 1 | . . 1 Impact . | . . . Kinetic 1 | . . 1 Secondary . | . . . Self-Inflicted Damage 68 | . 67 1 Shots 5 | . 4 1 Rammed . | . . . Targets Rammed . | . . . Kicked . | . . . Crushed . | . . . Highest Temperature 276 | . 276 213 Average Temperature 70 | . 73 42 Received Heat Transfer 366 | . 210 156 Siege Activations . | . . . Robots Corrupted . | . . . Combat Hostiles . | . . . Parts Fried . | . . . Impact Corruptions . | . . . Robots Melted . | . . . Combat Hostiles . | . . . Parts Melted 1 | . 1 . Heat Transferred 1874 | . 1541 333 Parts Sabotaged . | . . . Parts Stolen . | . . . Parts Stripped . | . . . Power Chain Reactions 2 | . 2 . Alert | -11 -10 -10 ------- Run | Yrd Mat Sub Peak Influence 367 | . 367 . Initial . | . . . Average 91 | . 96 . Maximum Alert Level 1 | . 1 . Low Security (%) 81 | 100 80 . Level 1 18 | . 19 . Level 2 . | . . . Level 3 . | . . . Level 4 . | . . . Level 5 . | . . . High Security . | . . . Max Security . | . . . Squads Dispatched 3 | . 3 . Investigation 2 | . 2 . Extermination . | . . . Reinforcement 1 | . 1 . Assault . | . . . Garrison . | . . . Intercept . | . . . Searches Triggered . | . . . Construction Impeded . | . . . Haulers Reinforced . | . . . Active Scanning Responses . | . . . Cargo Convoy Interrupts . | . . . Stealth | -11 -10 -10 --------- Run | Yrd Mat Sub Distress Signals . | . . . Communications Jammed . | . . . Distress Signals . | . . . Times Spotted 42 | . 26 16 Peak Tracking Total 6 | . 4 6 Tactical Retreats 2 | . 1 1 Traps | -11 -10 -10 ------- Run | Yrd Mat Sub Traps Triggered 3 | . 3 . Indirectly . | . . . Trap Hack Attempts . | . . . Triggered . | . . . Disarmed . | . . . Reprogrammed . | . . . Reused . | . . . Traps Extracted . | . . . Installed . | . . . Triggered 1 | . . 1 Machines | -11 -10 -10 ---------- Run | Yrd Mat Sub Machines Disabled 3 | . 2 1 Max in Single Turn 1 | . 1 1 Machines Repaired . | . . . Machines Dismantled . | . . . Machines Sabotaged . | . . . Overloaded Fab Kills . | . . . Hacking | -11 -10 -10 --------- Run | Yrd Mat Sub Machines Accessed 9 | . 9 . Terminals 6 | . 6 . Fabricators . | . . . Repair Stations 1 | . 1 . Recycling Units 2 | . 2 . Scanalyzers . | . . . Garrison Access . | . . . Total Hacks 20 | . 20 . Successful 16 | . 16 . Failed 4 | . 4 . Catastrophic 1 | . 1 . Database Lockouts . | . . . Manual 12 | . 12 . Terminals 16 | . 16 . Fabricators . | . . . Repair Stations 2 | . 2 . Recycling Units 2 | . 2 . Scanalyzers . | . . . Garrison Access . | . . . Terminal Hacks 6 | . 6 . Part Schematic 1 | . 1 . Emergency Access Points 1 | . 1 . Unreport Threat 1 | . 1 . Locate Traps 1 | . 1 . Dispatch Records 1 | . 1 . Hauler Manifests 1 | . 1 . Fabricator Hacks . | . . . Repair Station Hacks 2 | . 2 . Scan Component 1 | . 1 . Repair 1 | . 1 . Recycling Unit Hacks 2 | . 2 . Report Inventory 2 | . 2 . Scanalyzer . | . . . Garrison Access Hacks . | . . . Unauthorized Hacks 6 | . 6 . Terminals 6 | . 6 . Botnet 6 | . 6 . Fabricators . | . . . Repair Stations . | . . . Recycling Units . | . . . Scanalyzers . | . . . Garrison Access . | . . . Data Cores Recovered 1 | . 1 . Used . | . . . Hacking Detections 6 | . 6 . Full Trace Events 2 | . 2 . Feedback Events . | . . . Feedback Blocked . | . . . Robot Schematics Acquired . | . . . Robots Built . | . . . Authchips . | . . . Time . | . . . Total Robot Build Rating . | . . . Part Schematics Acquired 1 | . 1 . Parts Built . | . . . Authchips . | . . . Time . | . . . Total Part Build Rating . | . . . Parts Repaired 1 | . 1 . Time 32 | . 32 . Parts Recycled . | . . . Recycled Matter . | . . . Retrieved Matter . | . . . Retrieved Components . | . . . Parts Scanalyzed . | . . . Part Schematics Acquired . | . . . Parts Damaged . | . . . Bothacking | -11 -10 -10 ------------ Run | Yrd Mat Sub Used RIF Installer . | . . . Robots Hacked . | . . . Non-combat . | . . . Combat . | . . . Robot Hacks Applied . | . . . Relay Couplers Released . | . . . Fabnet Peak Effective % . | . . . Robots Rewired . | . . . Allies Hacked . | . . . Hacks Repelled . | . . . Allies | -11 -10 -10 -------- Run | Yrd Mat Sub Total Allies . | . . . Largest Group . | . . . Highest-Rated Group . | . . . Highest-Rated Ally . | . . . Total Orders . | . . . Ally Attacks . | . . . Total Damage . | . . . Kills . | . . . Allies Corrupted . | . . . Allies Melted . | . . . Intel | -11 -10 -10 ------- Run | Yrd Mat Sub Robot Analysis Total . | . . . Derelict Logs Recovered 1 | . . 1 Drone Launches . | . . . Drone Recoveries . | . . . Exploration | -11 -10 -10 ------------- Run | Yrd Mat Sub Turns Passed 3324 | 89 1989 1246 Spaces Moved 2388 | 80 1182 1126 Core 17 | 12 . 5 Treads . | . . . Legs . | . . . Wheels 2371 | 68 1182 1121 Hover . | . . . Flight . | . . . Fastest Speed 50 | 50 80 80 Average Speed 90 | 84 86 95 Slowest Speed 150 | 90 90 150 Overloaded Moves . | . . . Propulsion Burnouts . | . . . Robots Hopped . | . . . Cave-ins Triggered . | . . . Exploration Rate (%) 50 | 4 100 46 Regions Visited 2 Branch Regions 1 Pre-discovered Areas 1 | . . 1 Known Exits Taken . | . . . Unknown Exits Taken 2 | 1 1 . Scrap Searched . | . . . Spaces Dug 14 | . 14 . Terrain Destroyed 69 | . 40 29 Melee . | . . . Projectile 1 | . . 1 AOE 68 | . 40 28 Terrain Rammed . | . . . Walls Destroyed . | . . . Machines Disabled . | . . . Actions | -11 -10 -10 --------- Run | Yrd Mat Sub Total 3368 | 99 2013 1256 Wait 790 | . 727 63 Move 2386 | 79 1181 1126 Hop . | . . . Pick Up 31 | 11 12 8 Fast Attach 3 | . 1 2 Attach 12 | 6 3 3 Detach 1 | . . 1 Swap 24 | 1 14 9 Drop 22 | 1 8 13 Fire 98 | 1 67 30 Melee . | . . . Ram . | . . . Kick . | . . . Crush . | . . . Escape Stasis . | . . . Rewire . | . . . Trap . | . . . Miscellaneous 1 | . . 1 Route ------- -11/Scrapyard -10/Materials (discovered 6 exits: [*Mat x3] / [*Min x2] / [*Sub]) -10/Subcaves (discovered 2 exits: *Mat / *Rec) History --------- Turn | Location | Event 34 | -11/Scrapyard | Discovered new exit (range 16) 90 | -11/Scrapyard | Entered Materials 284 | -10/Materials | Discovered new exit (range 4) 314 | -10/Materials | Build established: Mutant 465 | -10/Materials | Discovered new exit (range 10) 639 | -10/Materials | Discovered new exit (range 7) 842 | -10/Materials | Core integrity fell below 50% 889 | -10/Materials | Discovered new exit (range 15) 1338 | -10/Materials | Discovered new exit (range 10) 1484 | -10/Materials | Repaired Particle Cannon 2047 | -10/Materials | Discovered new exit (range 6) 2079 | -10/Materials | Entered Subcaves 2145 | -10/Subcaves | Ambushed by swarm of Subdwellers 2300 | -10/Subcaves | Discovered new exit (range 8) 2572 | -10/Subcaves | Discovered new exit (range 14) 2713 | -10/Subcaves | Identified exit to Recycling 2809 | -10/Subcaves | A swath of the cavern ceiling suddenly collapsed 2982 | -10/Subcaves | Identified exit to Materials 3029 | -10/Subcaves | Ambushed by Subdweller buried in earth 3290 | -10/Subcaves | Ambushed by Subdwellers from Twisted Machinery 3294 | -10/Subcaves | Shifting Twisted Machinery released Scrap Shield 3300 | -10/Subcaves | Core integrity fell below 20% 3325 | -10/Subcaves | Destroyed by P5-LB2(R) with Subdweller Beam Cannon Last Messages --------------- 03208_ Critical hit (Burn: +37). 03210_ HV Slug penetrates Wall. 03213_ G-47 Trooper suffers critical hit (Destroy). 03213_ G-47 Trooper destroyed. 03216_ System corrupted: Bore Cannon jammed. 03216_ G-34 Mercenary destroyed. 03224_ System corrupted: Matter fused (-9). 03228_ Acquired 40 matter. 03230_ Heat Sink fries itself beyond repair. 03231_ Sml. Laser fries itself beyond repair. 03232_ Ion Engine fries itself beyond repair. 03275_ System corrupted: Heat flow error (+253). 03290_ P5-LB2(R) emerges from the Twisted Machinery. 03293_ Sub. Monowheel destroyed. Scrap Shield falls loose from the Twisted Machinery. 03297_ Grenade Launcher destroyed. 03303_ Wheel destroyed. Map ----- +----------------------------------------------------+ | ?????????????????????????????????????????????????? | | ?????????????????????????????????????????????????? | | ?????????????????????????????????????????????????? | | ????##???####??????????????###??????##??????????## | | ##### #?## #?????????????? ##### #??????????? | | ?# ??????????????? # #???????????? | | ?# #??????????????? #???????????? | | ## #??????????????? ##????#?????# | | #?????????####?# ? ###??# #### | | ######????# ### #?? ##?# | | ## ###### ## #??# ## ???# | | # #### ## ????? | | # ### ????? | | "" ### #?? ????# | | " ## ##?## #R # # ## #??# #?### | | "# #####???###R # # # #### ### | | """ ##????????## # # # | | """ ?????????# # | | """ " #?????????# ###### # # | | ""!""" "#?????????## ##??##### # # # # # | | " "#""""""??????????## ####???## ##?#### # | | # """""""???????????# #????# ###??### | | #???" """#???????????#" #???## ###### | | ??????????????????????# ##??# # | | ??????????????????????### ##### #### | | ????????????????????????#@ #### # ####??? | | ??????????????????????? #??###### #?????? | | ????????????????????? #???????###?????? | | ??????????????????? #????????????? | | ????????????????? #????????????? | | ??????????????? #### ###### ##????????????? | | ????????????? ?????## #??????###?????????????? | | ???????????? ????????# ??????????????????????? | | ?????????????????????# ??????????????????????? | | ?????????????????????# ??????????????????????? | | ????????????????????? ??????????????????????? | | ????????????????????? # #??????????????????????? | | ????????????????????######???????????????????????? | | ?????????????????????????????????????????????????? | | ?????????????????????????????????????????????????? | | ?????????????????????????????????????????????????? | | ?????????????????????????????????????????????????? | | ?????????????????????????????????????????????????? | | ?????????????????????????????????????????????????? | | ?????????????????????????????????????????????????? | | ?????????????????????????????????????????????????? | | ?????????????????????????????????????????????????? | | ?????????????????????????????????????????????????? | | ?????????????????????????????????????????????????? | | ?????????????????????????????????????????????????? | +----------------------------------------------------+ Best States ------------- Heat Dissipation 25 Energy Generation 15 Energy Capacity 250 Matter Stores 300 Matter Capacity 300 Sight Range 16 Terrain Scan Density 10 Armor Coverage 800 Evasion (%) 50 Offensive Hacking 10 Item Schematics ----------------- Hcp. Storage Unit | -10/Materials | Hacked Robot Schematics ------------------ None Fabricated ------------ Nothing Alien Tech Used ----------------- None Achievements -------------- Backstab Challenges ------------ None Game ------ Seed DecoderAuthchipDriver Manual? 0 Play Time 00:38:02 Cumulative 2.1 hours Start 2024.08.10 @ 21:17:47 End 2024.08.10 @ 21:54:31 Sessions 1 Manual Loads 0 Difficulty Rogue Special Mode None Game No. 5 Rogue 4 Adventurer 0 Explorer 1 Win Type - Total 0 Types 0/0/0/0/0/0/0/0/0 Lore% 6 Gallery% 7 Achievement% 8 Wizard Run 0 Options --------- Layout 2 ASCII 0 Keyboard 0 Movement Mouse Keybinds 0 Fullscreen 1 Font 32/Smallcaps Map View 50x44 Zoom Use 0% Tactical HUD 1 Map Filters NONE Filters NONE Steam 1 RUN: 72dd93bb-df9a-489a-b954-4e1f09bb306f